Cogmind - Beta 14 @@@ ROGUE MODE // 2024.11.07 @ 19:17:32 Player: Gabe+Kate4EVR Result: Destroyed by as-12792 with Assembled Blade Performance ------------- Evolutions (1) 500 Regions Visited (3) 600 Robots Destroyed (7) 35 Value Destroyed (198) 198 Prototype IDs (5) 100 Alien Tech Used (0) 0 Bonus (0) 0 TOTAL SCORE: 1433 Bonus ------- None Cogmind --------- Core Integrity 0/400 Matter 300/300 Energy 125/125 System Corruption 0% Temperature Cool (0) Movement Core (200) Ox3 Location -9/Mines Parts ------- > --- POWER (1) -------- Light Ion Engine > --- PROPULSION (4) --- (None) > --- UTILITY (2) ------ Small Storage Unit Targeting Computer > --- WEAPON (2) ------- Heavy Hammer > --- INVENTORY (8) ---- Visual Processing Unit ECM Suite Particle Cannon Particle Cannon Improved Assault Rifle Plasma Cutter Peak State ------------ > --- POWER ------------ Improved Ion Engine > --- PROPULSION ------- Aluminum Leg Aluminum Leg Aluminum Leg Hover Unit > --- UTILITY ---------- High-capacity Storage Unit Targeting Computer > --- WEAPON ----------- Particle Cannon Particle Cannon > --- INVENTORY -------- Visual Processing Unit Signal Interpreter ECM Suite Particle Cannon Plasma Cutter Heavy Hammer [Rating: 13] Favorites ----------- Power Ion Engine Engine Ion Engine Propulsion Aluminum Leg Leg Aluminum Leg Hover Unit Hover Unit Utility Targeting Computer Device ECM Suite Storage High-capacity Storage Unit Processor Targeting Computer Weapon Particle Cannon Energy Gun Medium Laser Energy Cannon Particle Cannon Impact Weapon Heavy Hammer Build | -11 -10 -9 -9 ------- Run | Yrd Mat Mat Min Slots Evolved 2 | . . 2 . Power . | . . . . Propulsion 2 | . . 2 . Utility . | . . . . Weapon . | . . . . Parts Attached 24 | 5 4 9 6 Power 5 | 1 2 1 1 Engine 5 | 1 2 1 1 Core . | . . . . Reactor . | . . . . Propulsion 7 | 2 . 5 . Treads . | . . . . Leg 6 | 2 . 4 . Wheel . | . . . . Hover 1 | . . 1 . Flight . | . . . . Utility 4 | . 2 1 1 Device 1 | . 1 . . Storage 2 | . . 1 1 Processor 1 | . 1 . . Hackware . | . . . . Protection . | . . . . Artifact . | . . . . Weapon 8 | 2 . 2 4 Energy Gun 2 | 2 . . . Energy Cannon 4 | . . 2 2 Ballistic Gun . | . . . . Ballistic Cannon . | . . . . Launcher . | . . . . Special Weapon . | . . . . Impact Weapon 2 | . . . 2 Slashing Weapon . | . . . . Piercing Weapon . | . . . . Special Melee Weapon . | . . . . Unidentified Prototypes . | . . . . Parts Lost 7 | . 1 . 6 Power 1 | . . . 1 Propulsion 5 | . 1 . 4 Utility . | . . . . Weapon 1 | . . . 1 Highest Loss Streak 6 | . 1 . 6 To Critical Strikes . | . . . . Average Slot Usage (%) 79 | . 77 95 55 Engine 11 | . 14 11 6 Leg 22 | . 23 30 7 Hover 4 | . . 9 2 Device 3 | . . 7 . Storage 3 | . . 3 10 Processor 10 | . 10 11 11 Energy Gun 12 | . 28 5 . Energy Cannon 8 | . . 16 9 Impact Weapon 1 | . . . 7 Peak Build Rating 13 | 5 6 13 13 Average Rating 7 | 3 5 10 7 On Entrance 6 | . 5 6 13 Naked Turns . | . . . . Heaviest Build 55 | 8 10 55 55 Greatest Support 30 | 20 20 30 30 Greatest Overweight (x) 6 | . . 3 6 Average Overweight (x) . | . . . 2 Largest Inventory Capacity 20 | 5 5 20 20 Average Capacity 7 | 5 5 9 11 Most Carried 7 | . 5 7 7 Average Carried 3 | . 2 5 6 Final Capacity 20 | 5 5 20 8 Final Carried 7 | . 5 7 6 Class Distribution -------------------- 65% | Mutant 34% | Scavenger-Mutant Dominant Class ---------------- Mutant | -10/Materials Scavenger-Mutant | -9/Materials Mutant | -9/Mines Resources | -11 -10 -9 -9 ----------- Run | Yrd Mat Mat Min Matter Collected 415 | 250 25 78 62 Remotely . | . . . . Salvage Created 329 | . 68 78 183 Parts 9 | . 2 6 1 Haulers Intercepted . | . . . . Recyclers Shooed 1 | . 1 . . Parts Field Recycled . | . . . . Retrieved Matter . | . . . . Parts Self-Destructed . | . . . . Prevented . | . . . . Kills | -11 -10 -9 -9 ------- Run | Yrd Mat Mat Min Combat Hostiles Destroyed 11 | . 2 1 8 Melee 5 | . . . 5 Guns 2 | . 2 . . Cannons 1 | . . . 1 Classes Destroyed 7 | . 1 2 4 Recycler 1 | . . . 1 Watcher 1 | . . 1 . Swarmer 1 | . . . 1 Grunt 2 | . 2 . . Sentry 1 | . . 1 . Demolisher 1 | . . . 1 Assembled 6 | . . . 6 Best Kill Streak 2 | . 2 1 2 Combat Bots Only 2 | . 2 1 2 Max Kills in Single Turn 1 | . 1 1 1 Gunslinging . | . . . . Exploded . | . . . . Melee 1 | . . . 1 Uniques/NPCs Destroyed . | . . . . Combat | -11 -10 -9 -9 -------- Run | Yrd Mat Mat Min Hostile Shots Fired 83 | . 14 4 65 Missed 15 | . 1 4 10 Damage Taken 1175 | . 241 . 934 Core 500 | . 74 . 426 Absorbed by Shields . | . . . . Core Remaining (%) 85 | 100 70 . . Volleys Fired 23 | . 9 7 7 Largest 2 | . 2 2 2 Hottest 136 | . 90 136 136 Shots Fired 46 | . 18 14 14 Gun 24 | . 18 6 . Cannon 22 | . . 8 14 Launcher . | . . . . Special . | . . . . Kinetic . | . . . . Thermal 46 | . 18 14 14 Explosive . | . . . . Electromagnetic . | . . . . Robot Hit Streak 7 | . 6 4 7 Robot Miss Streak 3 | . 2 2 3 Penetration Max . | . . . . Secondary Targets . | . . . . Shots Hit Robots 41 | . 11 8 22 Core Hits 11 | . 5 1 5 Critical Kills 1 | . . 1 . Critical Parts Destroyed 1 | . . . 1 Critical Strikes 2 | . . 1 1 Meltdown 1 | . . 1 . Smash 1 | . . . 1 Melee Attacks 16 | . . . 16 Impact 16 | . . . 16 Slashing . | . . . . Piercing . | . . . . Sneak Attacks 2 | . . . 2 Combat Hostiles 1 | . . . 1 Follow-up Attacks . | . . . . Damage Inflicted 1068 | . 141 131 796 Guns 190 | . 141 49 . Cannons 266 | . . 82 184 Explosions . | . . . . Melee 612 | . . . 612 Ramming . | . . . . Kinetic . | . . . . Thermal 456 | . 141 131 184 Explosive . | . . . . Electromagnetic . | . . . . Impact 612 | . . . 612 Slashing . | . . . . Piercing . | . . . . Highest Corruption . | . . . . Average Corruption . | . . . . Corruption Purged . | . . . . Corruption Blocked . | . . . . Overload Shots . | . . . . Overflow Damage 129 | . . . 129 Projectiles 10 | . . . 10 Explosions . | . . . . Melee 119 | . . . 119 Knockbacks 4 | . . . 4 Impact 4 | . . . 4 Kinetic . | . . . . Secondary . | . . . . Self-Inflicted Damage . | . . . . Shots . | . . . . Rammed . | . . . . Targets Rammed . | . . . . Kicked . | . . . . Crushed . | . . . . Highest Temperature 294 | . 294 198 148 Average Temperature 93 | . 136 66 70 Received Heat Transfer 240 | . 60 . 180 Effects 2 | . 2 . . Interference 2 | . 2 . . Siege Activations . | . . . . Robots Corrupted 3 | . . . 3 Combat Hostiles 2 | . . . 2 Parts Fried 1 | . . . 1 Impact Corruptions 7 | . . . 7 Robots Melted 1 | . . 1 . Combat Hostiles 1 | . . 1 . Parts Melted 1 | . 1 . . Heat Transferred 977 | . 360 284 333 Parts Sabotaged . | . . . . Parts Stolen . | . . . . Parts Stripped . | . . . . Power Chain Reactions . | . . . . Alert | -11 -10 -9 -9 ------- Run | Yrd Mat Mat Min Peak Influence 91 | . 91 90 54 Initial 38 | . . 38 34 Average 46 | . 37 73 32 Maximum Alert Level . | . . . . Low Security (%) 100 | 100 100 100 100 Level 1 . | . . . . Level 2 . | . . . . Level 3 . | . . . . Level 4 . | . . . . Level 5 . | . . . . High Security . | . . . . Max Security . | . . . . Squads Dispatched 2 | . 2 . . Investigation . | . . . . Extermination . | . . . . Reinforcement 2 | . 2 . . Assault . | . . . . Garrison . | . . . . Intercept . | . . . . Searches Triggered . | . . . . Construction Impeded . | . . . . Haulers Reinforced . | . . . . Active Scanning Responses . | . . . . Cargo Convoy Interrupts . | . . . . Stealth | -11 -10 -9 -9 --------- Run | Yrd Mat Mat Min Distress Signals . | . . . . Communications Jammed . | . . . . Distress Signals . | . . . . Times Spotted 28 | . 10 3 15 Peak Tracking Total 5 | . 3 1 5 Tactical Retreats 1 | . . . 1 Traps | -11 -10 -9 -9 ------- Run | Yrd Mat Mat Min Traps Triggered 2 | . 1 1 . Indirectly . | . . . . Trap Hack Attempts . | . . . . Triggered . | . . . . Disarmed . | . . . . Reprogrammed . | . . . . Reused . | . . . . Traps Extracted . | . . . . Installed . | . . . . Triggered . | . . . . Machines | -11 -10 -9 -9 ---------- Run | Yrd Mat Mat Min Machines Disabled . | . . . . Max in Single Turn . | . . . . Machines Repaired . | . . . . Machines Dismantled . | . . . . Machines Sabotaged . | . . . . Overloaded Fab Kills . | . . . . Hacking | -11 -10 -9 -9 --------- Run | Yrd Mat Mat Min Machines Accessed 3 | . 2 1 . Terminals 3 | . 2 1 . Fabricators . | . . . . Repair Stations . | . . . . Recycling Units . | . . . . Scanalyzers . | . . . . Garrison Access . | . . . . Total Hacks 6 | . 5 1 . Successful 3 | . 3 . . Failed 3 | . 2 1 . Catastrophic 1 | . . 1 . Database Lockouts . | . . . . Manual 5 | . 4 1 . Terminals 6 | . 5 1 . Fabricators . | . . . . Repair Stations . | . . . . Recycling Units . | . . . . Scanalyzers . | . . . . Garrison Access . | . . . . Terminal Hacks 3 | . 3 . . Prototype ID Bank 3 | . 3 . . Fabricator Hacks . | . . . . Repair Station Hacks . | . . . . Recycling Unit Hacks . | . . . . Scanalyzer . | . . . . Garrison Access Hacks . | . . . . Unauthorized Hacks . | . . . . Terminals . | . . . . Fabricators . | . . . . Repair Stations . | . . . . Recycling Units . | . . . . Scanalyzers . | . . . . Garrison Access . | . . . . Data Cores Recovered . | . . . . Used . | . . . . Hacking Detections 1 | . . 1 . Full Trace Events . | . . . . Feedback Events . | . . . . Feedback Blocked . | . . . . Robot Schematics Acquired . | . . . . Robots Built . | . . . . Authchips . | . . . . Time . | . . . . Total Robot Build Rating . | . . . . Part Schematics Acquired . | . . . . Parts Built . | . . . . Authchips . | . . . . Time . | . . . . Total Part Build Rating . | . . . . Parts Repaired . | . . . . Time . | . . . . Parts Recycled . | . . . . Recycled Matter . | . . . . Retrieved Matter . | . . . . Retrieved Components . | . . . . Parts Scanalyzed . | . . . . Part Schematics Acquired . | . . . . Parts Damaged . | . . . . Bothacking | -11 -10 -9 -9 ------------ Run | Yrd Mat Mat Min Used RIF Installer . | . . . . Robots Hacked . | . . . . Non-combat . | . . . . Combat . | . . . . Robot Hacks Applied . | . . . . Relay Couplers Released . | . . . . Fabnet Peak Effective % . | . . . . Robots Rewired . | . . . . Allies Hacked . | . . . . Hacks Repelled . | . . . . Allies | -11 -10 -9 -9 -------- Run | Yrd Mat Mat Min Total Allies . | . . . . Largest Group . | . . . . Highest-Rated Group . | . . . . Highest-Rated Ally . | . . . . Total Orders . | . . . . Ally Attacks . | . . . . Total Damage . | . . . . Kills . | . . . . Allies Corrupted . | . . . . Allies Melted . | . . . . Intel | -11 -10 -9 -9 ------- Run | Yrd Mat Mat Min Robot Analysis Total . | . . . . Derelict Logs Recovered . | . . . . Drone Launches . | . . . . Drone Recoveries . | . . . . Exploration | -11 -10 -9 -9 ------------- Run | Yrd Mat Mat Min Turns Passed 837 | 75 284 305 173 Spaces Moved 510 | 77 195 186 52 Core 79 | 35 . 1 43 Treads . | . . . . Legs 431 | 42 195 185 9 Wheels . | . . . . Hover . | . . . . Flight . | . . . . Fastest Speed 50 | 50 120 120 150 Average Speed 127 | 88 120 138 178 Slowest Speed 350 | 120 120 200 350 Overloaded Moves . | . . . . Propulsion Burnouts . | . . . . Robots Hopped . | . . . . Cave-ins Triggered . | . . . . Exploration Rate (%) 19 | 5 39 16 16 Regions Visited 3 Branch Regions 1 Pre-discovered Areas . | . . . . Known Exits Taken . | . . . . Unknown Exits Taken 3 | 1 1 1 . Scrap Searched . | . . . . Spaces Dug . | . . . . Terrain Destroyed 4 | . . . 4 Melee . | . . . . Projectile 4 | . . . 4 AOE . | . . . . Terrain Rammed . | . . . . Walls Destroyed . | . . . . Machines Disabled . | . . . . Actions | -11 -10 -9 -9 --------- Run | Yrd Mat Mat Min Total 614 | 81 225 220 88 Wait 25 | . 13 6 6 Move 507 | 76 194 185 52 Hop . | . . . . Pick Up 13 | . 5 8 . Fast Attach 13 | 5 3 3 2 Attach 3 | . . 3 . Detach . | . . . . Swap 8 | . 1 3 4 Drop 6 | . . 5 1 Fire 23 | . 9 7 7 Melee 16 | . . . 16 Ram . | . . . . Kick . | . . . . Crush . | . . . . Escape Stasis . | . . . . Rewire . | . . . . Trap . | . . . . Miscellaneous . | . . . . Route ------- -11/Scrapyard -10/Materials -9/Materials -9/Mines History --------- Turn | Location | Event 3 | -11/Scrapyard | Discovered new exit (range 15) 76 | -11/Scrapyard | Entered Materials 306 | -10/Materials | Build established: Mutant 358 | -10/Materials | Discovered new exit (range 3) 360 | -10/Materials | Entered another Materials area 360 | -9/Materials | Evolved 2 slots: Propulsion x2 522 | -9/Materials | Discovered new exit (range 9) 665 | -9/Materials | Entered Mines 666 | -9/Mines | Assembled infested the area 713 | -9/Mines | Core integrity fell below 50% 753 | -9/Mines | Core integrity fell below 20% 783 | -9/Mines | Lost 6 parts (1p4n1w) 838 | -9/Mines | Destroyed by as-12792 with Assembled Blade Last Messages --------------- 00764_ U-05 Engineer builds a Wall. 00770_ The unstable cave ceiling collapses. 00789_ Sneak attack on as-55005. 00789_ Destroyed Asb. Blade. 00789_ as-55005 system corrupted by crushing effect. 00789_ as-55005 destroyed. 00794_ Sneak attack on R-06 Scavenger. 00794_ Destroyed Com. Wheel. 00794_ R-06 Scavenger system corrupted by crushing effect. 00794_ R-06 Scavenger knocked back. 00795_ R-06 Scavenger system terminally corrupted. 00795_ Lgt. Ion Engine fried. 00801_ R-06 Scavenger collects Corrupted Sml. Storage Unit. 00808_ Acquired Lgt. Ion Engine. 00810_ Acquired 10 matter. 00822_ Destroyed Asb. Hover Unit. 00822_ as-99820 system corrupted by crushing effect. 00823_ as-99820 system terminally corrupted. 00830_ as-74817 destroyed. 00833_ K-01 Serf collects debris. Map ----- +----------------------------------------------------+ | #### ##???????????????????????????????????????? | | # # ##??????????????????????????????????????? | | # #??????????????????????????????????????? | | #??????????????????????????????????????? | | # ##### #???#####??????????????????????????? | | # % #??## ##?????????????????????????? | | !#########?## #?????????????????????????? | | ## #?????? #?????????????????????????? | | # ###?????? #?????????????????????????? | | # # # #???????? ##????????????????????????? | | # # % #???????? #????????????????????????? | | # ###??????# #????????????????????????? | | # % #####?## ##???????????????????????? | | ## ### #???????????????????????? | | ?## " #???????????????????????? | | ??# ##???????????????????????? | | ??#### ######%###????????????????????????? | | ?????## #######????# #??????????????????????????? | | ??????####??????????#%#####??????????????????????? | | ????????????????????# #?????#????????????????? | | ????????????????????##### #### ##???????????????? | | ????????????????????????# %= #???????????????? | | ????????????????????????#%###% #???????????? | | ?????????????????########k#??= #???????????? | | ??????????????# #??? ####???????????? | | ?????????????????########@#??? #??????????????? | | ????????????????????????# a#??? ##??????????????? | | ???????????????????????? #??###???????????????? | | ???????????????????????? #???????????????????? | | ???????????????????????## #??????????????????? | | ????????????????????????## ?????????????????? | | ?????????????????????????? ????????????????? | | ?????????????????????????? ???????????????? | | ?????????????????????????? %!??????????????? | | ?????????????????????????? = ?????????????? | | ?????????????????????????? ????????????? | | ?????????????????????????? ????????????? | | ?????????????????????????? #### ??????????????? | | ???????????????????????????##????????????????????? | | ?????????????????????????????????????????????????? | | ?????????????????????????????????????????????????? | | ?????????????????????????????????????????????????? | | ?????????????????????????????????????????????????? | | ?????????????????????????????????????????????????? | | ?????????????????????????????????????????????????? | | ?????????????????????????????????????????????????? | | ?????????????????????????????????????????????????? | | ?????????????????????????????????????????????????? | | ?????????????????????????????????????????????????? | | ?????????????????????????????????????????????????? | +----------------------------------------------------+ Best States ------------- Heat Dissipation 28 Energy Generation 12 Energy Capacity 265 Matter Stores 300 Matter Capacity 300 Sight Range 16 Terrain Scan Density 10 ECM Strength 1 Evasion (%) 55 Targeting Accuracy 5 Item Schematics ----------------- None Robot Schematics ------------------ None Fabricated ------------ Nothing Alien Tech Used ----------------- None Achievements -------------- None Challenges ------------ None Game ------ Seed SupersonicTargetSource Manual? 0 Play Time 00:09:23 Cumulative 209.4 hours Start 2024.11.07 @ 19:07:20 End 2024.11.07 @ 19:17:32 Sessions 1 Manual Loads 0 Difficulty Rogue Special Mode None Game No. 407 Rogue 407 Adventurer 0 Explorer 0 Win Type - Total 0 Types 0/0/0/0/0/0/0/0/0 Lore% 43 Gallery% 65 Achievement% 49 Wizard Run 0 Options --------- Layout 0 ASCII 0 Keyboard 1 Movement Numpad Keybinds 0 Fullscreen 1 Font 18/X11 Map View 76x50 Zoom Use 0% Tactical HUD 1 Map Filters NONE Filters NONE Steam 1 RUN: 8a6747ec-edf5-4d93-95f1-abe74e9e3d96